[Event "Indian Blitz Championship 2023"]
[Site "Nashik"]
[Date "2024.03.07"]
[Round "4.7"]
[White "Sengupta, Deep"]
[Black "Ayush Sharma"]
[Result "1-0"]
[ECO "A13"]
[WhiteElo "2500"]
[BlackElo "2311"]
[Annotator "TA"]
[PlyCount "141"]
[EventDate "2024.03.07"]
[EventType "blitz"]
[EventCountry "IND"]
[SourceTitle "playchess.com"]
[Source "ChessBase"]
[SourceQuality "1"]
[TimeControl "180+2"]

{[%evp 13,141,0,8,6,19,34,33,16,28,16,15,25,22,21,21,22,23,29,27,25,22,27,30,25,34,32,32,35,26,15,19,9,1,5,2,0,0,0,-8,-6,-7,-1,-5,-10,21,-14,92,95,98,95,102,8,8,8,114,114,114,114,114,114,114,114,114,114,114,114,114,98,141,114,141,141,141,141,552,552,552,544,552,504,524,526,529,358,510,510,510,375,507,494,453,350,350,283,294,270,232,0,0,0,0,0,0,0,0,0,8,8,8,8,8,8,8,0,0,0,29977,29975,29974,1162,1117,0,0,0,0,0,29985,29986,29988,29989]} 1. Nf3 {[%emt 0:00:01]} Nf6 {[%emt 0:00:04]} 2. c4 {[%emt 0:00:01]} e6 {[%emt 0:00:03]} 3. b3 {[%emt 0:00:03]} d5 {[%emt 0:00:07]} 4. Bb2 {[%emt 0:00:02]} c5 {[%emt 0:00:10]} 5. cxd5 {[%emt 0:00:04]} exd5 {[%emt 0:00:04]} 6. e3 {[%emt 0:03:03]} Nc6 {[%emt 0:00:02]} 7. Bb5 {[%emt 0:00:00]} Bd7 {[%emt 0:00:15]} 8. O-O {[%emt 0:00:00]} Be7 {[%emt 0:00:04]} 9. d4 {[%emt 0:00:00]} cxd4 {[%emt 0:00:02]} 10. Nxd4 {[%emt 0:00:00] White is slightly better.} O-O {[%emt 0:00:02]} 11. Be2 {[%emt 0:00:00]} Re8 {[%emt 0:00:08]} 12. Nd2 {[%emt 0:00:00][%cal Bb1d2,Bd2f3,Bf3d4][%mdl 32]} Rc8 {[%emt 0:00:03]} 13. N2f3 {[%emt 0:00:00]} Ne4 {[%emt 0:00:02]} 14. Rc1 {[%emt 0:00:00]} Bf6 {[%emt 0:00:22]} 15. Nxc6 {[%emt 0:00:00]} bxc6 {[%emt 0:00:01]} 16. Bxf6 {[%emt 0:00:00]} Qxf6 {[%emt 0:00:02]} 17. Qd4 {[%emt 0:00:00] Prevents Nc3} Qxd4 {[%emt 0:00:08]} 18. Nxd4 {[%emt 0:00:00]} c5 {[%emt 0:00:03]} 19. Nf3 {[%emt 0:00:00]} a5 {[%emt 0:00:30]} 20. Rfd1 {[%emt 0:00:00]} Be6 {[%emt 0:00:18]} 21. Nd2 {[%emt 0:00:00]} Nd6 {[%emt 0:00:05]} 22. Bf3 {[%emt 0:00:00]} Red8 {[%emt 0:00:02]} 23. Nb1 {[%emt 0:00:00]} c4 {[%emt 0:00:26]} 24. h3 {[%emt 0:00:17]} (24. Bxd5 Bxd5 25. Rxd5 cxb3 $19) 24... cxb3 {[%emt 0:00:16]} 25. Rxc8 {[%emt 0:00:02]} Rxc8 {[%emt 0:00:04]} 26. axb3 {[%emt 0:00:01]} Ne4 {[%emt 0:00:04]} 27. Nd2 {[%emt 0:00:10]} f5 {[%emt 0:00:10]} 28. g4 {[%emt 0:00:07]} Ng5 {[%emt 0:00:14]} 29. Bg2 {[%emt 0:00:02]} Ne4 {[%emt 0:00:04]} (29... fxg4 $11 {keeps the balance.} 30. hxg4 Rc2) 30. gxf5 $16 {[%emt 0:00:03]} Bxf5 {[%emt 0:00:01]} 31. Nxe4 {[%emt 0:00:01]} Bxe4 {[%emt 0:00:01]} 32. Bxe4 {[%emt 0:00:02]} (32. f3 $1 $16 {[%cal Rf3e4]} Bc2 33. Rxd5) 32... dxe4 {[%emt 0:00:01][%mdl 4096] Endgame. KR-KR} 33. Rd5 {[%emt 0:00:01]} Rb8 {[%emt 0:00:01]} (33... Ra8 $11) 34. Rxa5 {[%emt 0:00:02]} Rxb3 {[%emt 0:00:02]} 35. Ra4 {[%emt 0:00:00]} g6 {[%emt 0:00:05]} 36. Rxe4 {[%emt 0:00:02]} Kf7 {[%emt 0:00:00]} 37. Kg2 {[%emt 0:00:01]} Rb5 {[%emt 0:00:01]} 38. h4 {[%emt 0:00:01]} h6 {[%emt 0:00:03]} 39. Kg3 {[%emt 0:00:01]} Rb1 {[%emt 0:00:03]} 40. Ra4 {[%emt 0:00:01]} Rg1+ {[%emt 0:00:02]} 41. Kf3 {[%emt 0:00:01]} Rh1 {[%emt 0:00:02]} 42. Kg2 {[%emt 0:00:01]} Re1 {[%emt 0:00:01]} 43. Ra6 {[%emt 0:00:04][%cal Oh4h5] h5! would now be deadly.} Rb1 $2 {[%emt 0:00:03][%mdl 8192] [#]} (43... Kg7 $16 {is a better chance.} 44. Ra5 h5) 44. h5 $1 $18 {[%emt 0:00:02][%mdl 512]} gxh5 {[%emt 0:00:06]} 45. Rxh6 {[%emt 0:00:01]} Rb5 {[%emt 0:00:01]} 46. Kg3 {[%emt 0:00:02]} Kg7 {[%emt 0:00:01]} 47. Rc6 {[%emt 0:00:01]} Rg5+ {[%emt 0:00:01]} 48. Kf4 {[%emt 0:00:02]} Rg4+ {[%emt 0:00:02] [#]} (48... Rg2 {was worth a try.} 49. Kf3 Rg1) 49. Kf3 $1 {[%emt 0:00:01]} Ra4 {[%emt 0:00:02]} 50. Re6 {[%emt 0:00:03]} Kf7 {[%emt 0:00:05]} 51. Rh6 {[%emt 0:00:04]} Ra5 {[%emt 0:00:01]} 52. e4 {[%emt 0:00:07]} Kg7 {[%emt 0:00:01]} 53. Rb6 {[%emt 0:00:01]} Rg5 {[%emt 0:00:03]} 54. Ke3 {[%emt 0:00:04]} h4 {[%emt 0:00:02]} 55. f4 $2 {[%emt 0:00:04]} (55. Rb7+ $18 Kh6 56. Rb6+ Kg7 57. Rd6) 55... Rg3+ $11 {[%emt 0:00:01]} 56. Kf2 {[%emt 0:00:01]} Rg4 {[%emt 0:00:01]} 57. Ke3 {[%emt 0:00:04]} Rg3+ {[%emt 0:00:01]} 58. Kd4 {[%emt 0:00:00]} h3 {[%emt 0:00:03] ...h2 is the strong threat.} 59. Rb2 {[%emt 0:00:04]} Rg2 {[%emt 0:00:03]} 60. Rb3 {[%emt 0:00:01]} Rd2+ {[%emt 0:00:04]} (60... h2 $5 61. Rh3 $8 Kf6 $11) 61. Ke5 {[%emt 0:00:01]} h2 {[%emt 0:00:02]} 62. Rh3 {[%emt 0:00:01] Wards off h1Q} Kg6 $1 {[%emt 0:00:02]} 63. Ke6 {[%emt 0:00:03] Hoping for f5+.} (63. Rh8 {simplifies} Rf2 64. Kd4 Rxf4 65. Rxh2 Rf6 66. Ke5) 63... Re2 {[%emt 0:00:02]} 64. e5 {[%emt 0:00:00] White wants to mate with f5+.} Re4 $2 {[%emt 0:00:02][%mdl 8192]} (64... Ra2 $11) 65. f5+ {[%emt 0:00:02]} Kg5 {[%emt 0:00:01]} 66. f6 {[%emt 0:00:01]} (66. Rxh2 $142 Ra4 67. f6 Ra6+ 68. Kf7 Ra7+ 69. Kg8 Ra8+ 70. Kg7 Kf5 71. f7 Kxe5 72. Rh4 (72. f8=B Ke6 $14) (72. f8=Q Rxf8 73. Kxf8 Ke4 74. Rh4+ Kf5 75. Kf7 Ke5 76. Ke7 Kd5) (72. f8=R Ra7+ 73. Kh8 Ke4 $18)) 66... Rh4 $18 {[%emt 0:00:02] [#]} 67. Rxh2 $3 {[%emt 0:00:06][%mdl 512]} Rxh2 $11 {[%emt 0:00:02]} 68. f7 {[%emt 0:00:02]} Rf2 {[%emt 0:00:02] ( -> ...Kg6)} (68... Rh8 $5 69. Ke7 $8 Rc8 $11) 69. Ke7 {[%emt 0:00:00] Intending e6 and mate.} Rf5 $2 {[%emt 0:00:03][%mdl 8192]} (69... Kg6 $11 70. f8=Q Rxf8 71. Kxf8 Kf5) 70. e6 {[%emt 0:00:03]} ({Worse is} 70. f8=R Rxe5+ 71. Kd6 Rb5 $11) 70... Kf4 {[%emt 0:00:02]} 71. f8=Q {[%emt 0:00:02] Weighted Error Value: White=0.19 (very precise) /Black=0.30.  Loses game:     	---       	Black=3      Missed win:     	White=1     	---        Mistake:       	White=1     	Black=3      Inaccurate:     	White=2     	Black=3      OK:         	White=20    	Black=25     Best:        	White=5     	Black=2      Strong:       	White=1     	Black=1      Brilliant:      	White=1     	---} 1-0

[Event "Indian Blitz Championship 2023"]
[Site "Nashik"]
[Date "2024.03.07"]
[Round "4.8"]
[White "Nagare Kaivalya Sandip"]
[Black "Nitin, S.."]
[Result "0-1"]
[ECO "B08"]
[WhiteElo "2074"]
[BlackElo "2338"]
[Annotator "TA"]
[PlyCount "66"]
[EventDate "2024.03.07"]
[EventType "blitz"]
[EventCountry "IND"]
[SourceTitle "playchess.com"]
[Source "ChessBase"]
[SourceQuality "1"]
[TimeControl "180+2"]

{[%evp 15,66,38,72,16,18,0,0,0,18,0,7,-12,-22,-45,118,62,69,75,110,96,96,106,104,0,0,-8,0,-49,-18,-70,-82,-90,-25,-49,0,-43,-45,-459,-458,-652,-347,-347,-348,-424,-427,-1244,-1120,-29983,-29983,-29986,-1893,-29978,-29979]} 1. e4 {[%emt 0:00:01]} g6 {[%emt 0:00:02]} 2. d4 {[%emt 0:00:01]} Bg7 {[%emt 0:00:01]} 3. Nc3 {[%emt 0:00:01]} c6 {[%emt 0:00:01]} 4. Nf3 {[%emt 0:00:06]} d6 {[%emt 0:00:00]} 5. h3 {[%emt 0:00:03]} Nf6 {[%emt 0:00:02]} 6. a4 {[%emt 0:00:04]} O-O {[%emt 0:00:02]} 7. Be3 {[%emt 0:00:07]} Qc7 {[%emt 0:00:02]} 8. Qd2 {[%emt 0:00:04]} e5 {[%emt 0:00:08]} 9. Be2 {[%emt 0:00:09]} ({Better is} 9. dxe5 $16 dxe5 10. Bc4) 9... exd4 $11 {[%emt 0:00:06]} 10. Nxd4 {[%emt 0:00:01]} Re8 {[%emt 0:00:01]} 11. f3 {[%emt 0:00:18] The position is equal.} Nbd7 {[%emt 0:00:54]} 12. O-O-O {[%emt 0:00:02]} a6 {[%emt 0:00:10]} 13. Nb3 {[%emt 0:00:12] [#]} d5 {[%emt 0:00:15][%cal Bd6d5,Bd5c4][%mdl 32]} 14. g4 {[%emt 0:00:10]} (14. Bf4 Ne5) 14... Nb6 $2 {[%emt 0:00:26]} (14... b5 $15 {keeps the upper hand.}) 15. Bf4 {[%emt 0:00:32]} (15. a5 $16 Nbd7 16. Bf4 (16. exd5 Nxd5 17. Nxd5 Qe5 $14)) 15... Qe7 $14 {[%emt 0:00:01][%cal Rd5e4]} 16. a5 {[%emt 0:00:13]} Nc4 {[%emt 0:00:05]} 17. Bxc4 {[%emt 0:00:01]} dxc4 {[%emt 0:00:01]} 18. Bd6 {[%emt 0:00:02] Black is weak on the dark squares} Qd8 {[%emt 0:00:03] [#]} 19. Nc5 {[%emt 0:00:07]} (19. Bb4 $1 $16 Be6 20. Qf2 (20. Nc5 Qxd2+ 21. Kxd2 Nd7 $16)) 19... Qxa5 $11 {[%emt 0:00:03][%cal Of6e4]} 20. Kb1 {[%emt 0:00:07]} b5 {[%emt 0:00:07]} 21. e5 {[%emt 0:00:03]} (21. Qf4 $11 {feels stronger.}) 21... Nd7 {[%emt 0:00:02] aiming for ...Nxc5.} (21... b4 $5 22. N3a4 Nd5 $14) 22. f4 {[%emt 0:00:18]} (22. Qd4 $1 $11) 22... Nxc5 $15 {[%emt 0:00:21]} 23. Bxc5 {[%emt 0:00:02] [#]} Be6 {[%emt 0:00:08]} ({Black should try} 23... b4 $1 $17 {[%cal Rb4c3]} 24. Ne4 c3) 24. f5 {[%emt 0:00:12]} gxf5 {[%emt 0:00:02]} (24... b4 $1 $15 25. fxe6 Qxc5) 25. gxf5 {[%emt 0:00:00]} Bxf5 {[%emt 0:00:01][%cal Ob5b4]} 26. Rdg1 $2 {[%emt 0:00:08][%mdl 8192] Loses the game.} ({Only move:} 26. Qf2 $1 $15 Rxe5 27. Bb6) 26... Bg6 $1 $19 {[%emt 0:00:01][%cal Ob5b4] Threatens to win with ...b4!} (26... Rxe5 27. Rxg7+ Kxg7 28. Qg5+ Bg6 29. Qxe5+ f6 30. Qe7+ Kg8 31. Qxf6 $18) 27. h4 {[%emt 0:00:09]} (27. Ne4 $142 Qxd2 28. Nxd2 Rxe5 (28... Bxe5 $2 29. Nf3 $19) 29. Bd4) 27... h5 {[%emt 0:00:01]} (27... Bxe5 $2 {too greedy.} 28. h5 Qd8 29. Qg2 $18) 28. Rxg6 {[%emt 0:00:05]} fxg6 {[%emt 0:00:01]} 29. Qd6 {[%emt 0:00:01][%cal Oh1g1] Rg1! would now be deadly.} Rxe5 {[%emt 0:00:18] ...Rae8 is the strong threat.} 30. Bd4 {[%emt 0:00:07]} (30. Qxg6 $142 Rae8 (30... Rxc5 31. Ne4 $15) 31. Rd1) 30... Rd8 {[%emt 0:00:03]} 31. Qxg6 {[%emt 0:00:14]} Rxd4 {[%emt 0:00:02]} 32. Rg1 {[%emt 0:00:01]} Qc7 {[%emt 0:00:04]} (32... Rg4 $142 33. Qxg7+ Rxg7 34. Rd1 Qb6 35. b3 cxb3 36. Kb2 bxc2 37. Rd2 b4 38. Ne2 Rxe2 39. Rxe2 Qd4+ (39... b3 {gets mated.} 40. Re8+ Kh7 41. Re1 Qd4+ 42. Ka3 b2 43. Rf1 c1=Q 44. Rxc1 bxc1=Q+ 45. Kb3 Qdc4#) 40. Kxc2 Qc3+ (40... Qxh4 41. Re8+ Kf7 42. Re3 Qc4+ 43. Kb1 Rg1+ 44. Kb2 Rg2+ 45. Re2 Rxe2+ 46. Kb1 Qe4+ 47. Kc1 Qh1#) 41. Kb1 Rg1+ 42. Re1 Rxe1+ 43. Ka2 Qc2#) 33. Qf6 {[%emt 0:00:16] [#]} Re1+ $3 {[%emt 0:00:07] Weighted Error Value: White=1.23/Black=0.70.  Loses game:     	White=1     	---        Mistake:       	White=6     	Black=3      Inaccurate:     	White=2     	Black=3      OK:         	White=4     	Black=7      Best:        	White=1     	Black=1      Strong:       	---       	Black=1      Brilliant:      	---       	Black=1} 0-1

[Event "Indian Blitz Championship 2023"]
[Site "Nashik"]
[Date "2024.03.07"]
[Round "4.9"]
[White "Srihari L R"]
[Black "Vignesh B"]
[Result "1-0"]
[ECO "D26"]
[WhiteElo "2490"]
[BlackElo "2209"]
[Annotator "TA"]
[PlyCount "59"]
[EventDate "2024.03.07"]
[EventType "blitz"]
[EventCountry "IND"]
[SourceTitle "playchess.com"]
[Source "ChessBase"]
[SourceQuality "1"]
[TimeControl "180+2"]

{[%evp 20,58,43,14,16,13,14,6,41,29,55,53,87,93,112,100,119,68,72,57,63,53,58,52,59,41,142,134,134,147,258,263,245,215,364,349,639,625,615,543,29999]} 1. d4 {[%emt 0:00:01]} d5 {[%emt 0:00:02]} 2. c4 {[%emt 0:00:01]} dxc4 {[%emt 0:00:01]} 3. Nf3 {[%emt 0:00:01]} Nf6 {[%emt 0:00:02]} 4. e3 {[%emt 0:00:01]} c5 {[%emt 0:00:01]} 5. Bxc4 {[%emt 0:00:06]} cxd4 {[%emt 0:00:03]} 6. O-O {[%emt 0:00:02]} e6 {[%emt 0:00:01]} 7. exd4 {[%emt 0:00:03]} Be7 {[%emt 0:00:02]} 8. Nc3 {[%emt 0:00:03]} O-O {[%emt 0:00:02]} 9. Re1 {[%emt 0:00:19]} Nc6 {[%emt 0:00:02]} 10. a3 {[%emt 0:00:02]} a6 {[%emt 0:00:01]} 11. Bg5 {[%emt 0:00:05][%cal Bc1g5,Bg5h4,Bh4g3,Bg3e5][%mdl 32]} h6 {[%emt 0:00:05]} 12. Bh4 {[%emt 0:00:01]} b5 {[%emt 0:00:08]} 13. Ba2 {[%emt 0:00:01]} b4 {[%emt 0:00:23] The position is equal.} 14. Na4 {[%emt 0:00:51]} Rb8 {[%emt 0:01:00]} 15. Rc1 {[%emt 0:00:08]} Na5 {[%emt 0:00:36]} 16. Nc5 {[%emt 0:00:21]} Nd5 {[%emt 0:00:31]} 17. Bg3 {[%emt 0:00:04]} Bd6 {[%emt 0:00:14]} 18. Ne5 {[%emt 0:00:18]} ({White should try} 18. Qd3 $16 {Bb1 would now be deadly.} bxa3 19. bxa3 (19. Nxa6 $2 Bxa6 20. Qxa6 Bxg3 $19) (19. Qxa3 Rb5 $14)) 18... bxa3 $14 {[%emt 0:00:06]} 19. bxa3 {[%emt 0:00:01]} Rb2 {[%emt 0:00:05] Inhibits Qc2.} 20. Re2 {[%emt 0:00:22]} Rxe2 {[%emt 0:00:04]} 21. Qxe2 {[%emt 0:00:00]} Bxe5 {[%emt 0:00:12]} 22. Bxe5 {[%emt 0:00:12][%cal Oa2b1]} Nc6 {[%emt 0:00:00] [#]} (22... Ne7 $1 $14) 23. Nxe6 $1 $16 {[%emt 0:00:11][%mdl 512] White has more active pieces.} Bxe6 {[%emt 0:00:01]} 24. Rxc6 {[%emt 0:00:01][%cal Oh2h3]} Qa5 {[%emt 0:00:03]} (24... Qe8 $16 {was necessary.} 25. Qxa6 (25. Rxa6 $2 Nc3 $17) 25... Nc7 26. Rxc7 Bxa2) 25. Rc5 $18 {[%emt 0:00:22]} (25. Rxa6 Qc3 26. h3 Qc1+ 27. Qf1 Rc8 28. Qxc1 Rxc1+ 29. Kh2 Ne3 30. fxe3 (30. Bxe6 Nf1+ 31. Kg1 Ne3+ 32. Kh2 Nf1+ 33. Kg1 Ne3+ 34. Kh2 $11) (30. Ra8+ Kh7 $16) 30... Bxa2 $16) (25. Qxa6 Qd2 26. Bxd5 Bxd5 $16) 25... Qd8 {[%emt 0:00:03]} 26. h3 {[%emt 0:00:04]} a5 {[%emt 0:00:01]} (26... Nf4 $142 27. Bxf4 Qxd4) 27. Qf3 {[%emt 0:00:02]} Nb6 {[%emt 0:00:07]} (27... Nf6) 28. Bxe6 {[%emt 0:00:06]} fxe6 {[%emt 0:00:00] Black is weak on the dark squares} 29. Qg4 {[%emt 0:00:01][%csl Ge5][%cal Rg4g7] [#]} Qe8 {[%emt 0:00:00]} 30. Qxg7# {[%emt 0:00:02] Weighted Error Value: White=0.14 (very precise) /Black=0.75.  Mistake:       	White=1     	Black=4      Inaccurate:     	---       	Black=3      OK:         	White=8     	Black=4      Brilliant:      	White=1     	---} 1-0

[Event "Indian Blitz Championship 2023"]
[Site "Nashik"]
[Date "2024.03.07"]
[Round "4.10"]
[White "Aronyak Ghosh"]
[Black "Sharma, Harish"]
[Result "1-0"]
[ECO "D02"]
[WhiteElo "2517"]
[BlackElo "1926"]
[Annotator "TA"]
[PlyCount "83"]
[EventDate "2024.03.07"]
[EventType "blitz"]
[EventCountry "IND"]
[SourceTitle "playchess.com"]
[Source "ChessBase"]
[SourceQuality "1"]
[TimeControl "180+2"]

{[%evp 9,83,44,75,57,59,56,75,62,71,74,91,94,108,113,109,110,144,147,140,134,232,138,134,144,132,133,150,115,173,174,153,130,128,122,162,162,156,87,100,100,107,80,68,71,75,67,114,73,106,95,123,116,129,105,130,135,196,154,247,247,257,264,269,256,280,258,279,279,275,279,233,275,496,250,250,226]} 1. Nf3 {[%emt 0:00:02]} e6 {[%emt 0:00:03]} 2. d4 {[%emt 0:00:02]} d5 {[%emt 0:00:00]} 3. Bf4 {[%emt 0:00:02]} Bd6 {[%emt 0:00:01]} 4. e3 {[%emt 0:03:04]} f5 {[%emt 0:00:02]} 5. c4 {[%emt 0:00:00]} c6 {[%emt 0:00:01]} 6. Nbd2 {[%emt 0:00:00]} Nf6 {[%emt 0:00:02]} 7. Be2 {[%emt 0:00:00]} Qe7 {[%emt 0:00:04]} 8. O-O {[%emt 0:00:00] Weiß steht besser.} O-O {[%emt 0:00:02]} 9. c5 {[%emt 0:00:00]} Bc7 {[%emt 0:00:02]} 10. b4 {[%emt 0:00:00]} a6 {[%emt 0:00:02]} 11. a4 {[%emt 0:00:00]} Qd8 {[%emt 0:00:08]} 12. b5 {[%emt 0:00:00]} axb5 {[%emt 0:00:10]} 13. axb5 {[%emt 0:00:00]} Rxa1 {[%emt 0:00:03]} 14. Qxa1 {[%emt 0:00:00]} Nbd7 {[%emt 0:00:08] [#]} (14... Bxf4 $16 15. exf4 cxb5 16. Bxb5 Rf7) 15. b6 {[%emt 0:00:00]} (15. bxc6 $1 $18 bxc6 16. Qa7 Bxf4 17. exf4) 15... Bxf4 $16 {[%emt 0:00:09]} 16. exf4 {[%emt 0:00:00]} Ne4 {[%emt 0:00:04]} 17. Nb3 {[%emt 0:00:00]} g5 {[%emt 0:00:43]} 18. Qc1 {[%emt 0:00:00][%cal Rf4g5]} h6 {[%emt 0:00:14] [#]} (18... g4 $16) 19. Ne5 $1 $18 {[%emt 0:00:00]} gxf4 {[%emt 0:00:32]} 20. f3 {[%emt 0:00:00]} Nxe5 {[%emt 0:00:20]} 21. dxe5 {[%emt 0:00:00]} Ng5 {[%emt 0:00:09]} 22. Qxf4 {[%emt 0:00:00]} Qe7 {[%emt 0:00:13]} 23. Bd3 {[%emt 0:00:00]} (23. h4 $142 Nf7 24. Qg3+ Kh8 25. f4) 23... Qg7 $16 {[%emt 0:00:01] Droht ...Nh3+ und aus.} 24. Kh1 {[%emt 0:00:00]} Bd7 {[%emt 0:00:02]} 25. Ra1 {[%emt 0:00:06] Weiß steht deutlich aktiver.} Nf7 {[%emt 0:00:00]} 26. Re1 {[%emt 0:00:05]} Ra8 {[%emt 0:00:01]} 27. Bf1 {[%emt 0:00:16]} Ra2 {[%emt 0:00:07]} (27... Nh8 $14) 28. Qe3 {[%emt 0:00:08]} Ra3 {[%emt 0:00:02][%cal Of7e5]} 29. f4 $36 {[%emt 0:00:04][%mdl 2048] Weiss hat starke Initiative.} Nh8 {[%emt 0:00:07]} 30. Ra1 {[%emt 0:00:02]} Rxa1 {[%emt 0:00:02]} 31. Nxa1 {[%emt 0:00:00]} Ng6 {[%emt 0:00:03]} 32. Nb3 {[%emt 0:00:02]} Ne7 {[%emt 0:00:06] Schwarz hat schwache schwarze Felder} (32... h5 $16 33. Be2 h4) 33. Kg1 {[%emt 0:00:03]} Qg4 {[%emt 0:00:02]} (33... Ng6 $16 34. Na5 Be8) 34. Be2 $18 {[%emt 0:00:02]} Qg6 {[%emt 0:00:05]} 35. Qg3 {[%emt 0:00:03]} Qxg3 {[%emt 0:00:03]} 36. hxg3 {[%emt 0:00:01][%mdl 4096] Endspiel. KBN-KBN} Kg7 {[%emt 0:00:03]} 37. g4 {[%emt 0:00:01]} Kg6 {[%emt 0:00:03]} 38. Nd4 {[%emt 0:00:02]} fxg4 {[%emt 0:00:08]} 39. Bxg4 {[%emt 0:00:01]} Kf7 {[%emt 0:00:02]} 40. Kf2 {[%emt 0:00:02]} Ng6 $2 {[%emt 0:00:08]} (40... Bc8 {war angesagt.} 41. Bh5+ Kg8) 41. Kg3 {[%emt 0:00:03]} (41. Bh5 $142) 41... Ke7 {[%emt 0:00:07]} 42. Bh5 {[%emt 0:00:02] Gewichteter Fehlerwert: Weiß=0.20 (präzise) /Schwarz=0.24 (präzise) .  Fehler:       	Weiß=3     	Schwarz=6     Ungenau:       	Weiß=1     	Schwarz=3     OK:         	Weiß=14    	Schwarz=10    Bester:       	---       	Schwarz=2} 1-0